Cogmind - Beta 16 @@@ ROGUE MODE // 2026.02.03 @ 16:27:08 Player: FailPail Result: Destroyed by Y-45 Defender with Beam Rifle Performance ------------- Evolutions (1) 500 Regions Visited (2) 400 Robots Destroyed (30) 150 Value Destroyed (630) 630 Prototype IDs (5) 100 Alien Tech Used (0) 0 Bonus (0) 0 TOTAL SCORE: 1780 Bonus ------- None Cogmind --------- Core Integrity 0/400 Matter 258/300 Energy 265/265 System Corruption 0% Temperature Cool (9) Movement Core (1450) Ox28 Location -9/Materials Parts ------- > --- POWER (1) -------- Improved Ion Engine > --- PROPULSION (2) --- (None) > --- UTILITY (4) ------ Huge Storage Unit Visual Processing Unit Visual Processing Unit Visual Processing Unit > --- WEAPON (2) ------- (None) > --- INVENTORY (25) --- Light Ion Engine Hover Unit Large Storage Unit Large Storage Unit Targeting Computer Medium Armor Plating Medium Armor Plating Peak State ------------ > --- POWER ------------ Improved Ion Engine > --- PROPULSION ------- Compact Wheel > --- UTILITY ---------- Huge Storage Unit Visual Processing Unit Visual Processing Unit Hardened Light Armor Plating > --- WEAPON ----------- Improved Assault Rifle > --- INVENTORY -------- Light Ion Engine Hover Unit Large Storage Unit Large Storage Unit Medium Armor Plating Medium Armor Plating [Rating: 13] Favorites ----------- Power Ion Engine Engine Ion Engine Propulsion Light Treads Treads Light Treads Wheel Compact Wheel Hover Unit Hover Unit Utility Huge Storage Unit Device Sensor Array Storage Huge Storage Unit Processor Visual Processing Unit Protection Hardened Light Armor Plating Weapon Light Assault Rifle Energy Cannon Beam Cannon Ballistic Gun Light Assault Rifle Build | -11 -10 -9 ------- Run | Yrd Mat Mat Slots Evolved 2 | . . 2 Power . | . . . Propulsion . | . . . Utility 2 | . . 2 Weapon . | . . . Parts Attached 30 | 5 5 20 Power 6 | 1 . 5 Engine 6 | 1 . 5 Core . | . . . Reactor . | . . . Propulsion 6 | 2 . 4 Treads 4 | 2 . 2 Leg . | . . . Wheel 1 | . . 1 Hover 1 | . . 1 Flight . | . . . Utility 12 | 1 4 7 Device 3 | . 1 2 Storage 4 | 1 2 1 Processor 3 | . . 3 Hackware . | . . . Protection 2 | . 1 1 Artifact . | . . . Weapon 6 | 1 1 4 Energy Gun . | . . . Energy Cannon 1 | . 1 . Ballistic Gun 5 | 1 . 4 Ballistic Cannon . | . . . Launcher . | . . . Special Weapon . | . . . Impact Weapon . | . . . Slashing Weapon . | . . . Piercing Weapon . | . . . Special Melee Weapon . | . . . Unidentified Prototypes 1 | . . 1 Parts Lost 21 | . 2 19 Power 5 | . . 5 Propulsion 5 | . 1 4 Utility 5 | . 1 4 Weapon 6 | . . 6 Highest Loss Streak 7 | . 1 7 To Critical Strikes . | . . . Average Backups 6 | . 4 7 Power . | . . 1 Propulsion . | . . . Utility 3 | . 2 4 Weapon 1 | . 2 1 Tool/Special . | . . . Unused Backups 4 | . . 4 Power 1 | . . 1 Propulsion . | . . . Utility 3 | . . 3 Weapon . | . . . Tool/Special . | . . . Average Slot Usage (%) 80 | . 84 76 Engine 11 | . 13 9 Treads 13 | . 17 9 Device 12 | . 9 14 Storage 12 | . 13 11 Processor 5 | . . 10 Protection 3 | . 3 3 Energy Cannon 8 | . 11 5 Ballistic Gun 12 | . 14 11 Peak Build Rating 13 | 5 7 13 Average Rating 7 | 3 5 9 On Entrance 3 | . 5 6 Avg Prop Armor Cover (%) 16 | . . 16 Naked Turns . | . . . Heaviest Build 95 | 11 90 95 Greatest Support 40 | 40 40 40 Greatest Overweight (x) 29 | . 4 29 Average Overweight (x) 2 | . 1 5 Largest Inventory Capacity 25 | 8 25 25 Average Capacity 22 | 6 20 25 Most Carried 11 | 3 7 11 Average Carried 6 | . 4 7 Final Capacity 25 | 8 25 25 Final Carried 7 | . 7 7 Class Distribution -------------------- 87% | Mutant 12% | Scavenger-Mutant Dominant Class ---------------- Mutant | -10/Materials Mutant | -9/Materials Resources | -11 -10 -9 ----------- Run | Yrd Mat Mat Matter Collected 649 | 195 165 289 Remotely . | . . . Salvage Created 757 | . 237 520 Parts 69 | . 24 45 Haulers Intercepted . | . . . Recyclers Shooed 2 | . 1 1 Parts Field Recycled . | . . . Retrieved Matter . | . . . Parts Self-Destructed . | . . . Prevented . | . . . Parts Restored . | . . . Kills | -11 -10 -9 ------- Run | Yrd Mat Mat Combat Hostiles Destroyed 24 | . 9 15 Guns 14 | . 4 10 Cannons 10 | . 5 5 Classes Destroyed 5 | . 3 2 Operator 1 | . . 1 Watcher 5 | . 1 4 Swarmer 14 | . 5 9 Grunt 6 | . 4 2 Sentry 4 | . . 4 Best Kill Streak 5 | . 5 4 Combat Bots Only 4 | . 4 3 Max Kills in Single Turn 1 | . 1 1 Gunslinging . | . . . Exploded . | . . . Melee . | . . . Uniques/NPCs Destroyed . | . . . Combat | -11 -10 -9 -------- Run | Yrd Mat Mat Hostile Shots Fired 336 | . 83 253 Missed 103 | . 27 76 Hits 233 | . 56 177 Projectile 233 | . 56 177 Critical Strikes 5 | . . 5 Damage Taken 2642 | . 596 2046 Core 481 | . 73 408 Absorbed by Shields . | . . . Regen/Repaired (Parts) 158 | . 158 . Core Remaining (%) 85 | 100 70 . Volleys Fired 145 | . 51 94 Largest 2 | . 2 2 Hottest 80 | . 80 80 Shots Fired 221 | . 86 135 Gun 162 | . 50 112 Cannon 59 | . 36 23 Launcher . | . . . Special . | . . . Kinetic 162 | . 50 112 Thermal 59 | . 36 23 Explosive . | . . . Electromagnetic . | . . . Robot Hit Streak 16 | . 7 16 Robot Miss Streak 6 | . 5 6 Penetration Max . | . . . Secondary Targets 2 | . . 2 Max Gunslinging Chain 1 | . . 1 Shots Hit Robots 128 | . 43 85 Core Hits 49 | . 15 34 Critical Kills 1 | . . 1 Critical Parts Destroyed 3 | . 1 2 Critical Strikes 4 | . 1 3 Destroy 4 | . 1 3 Melee Attacks . | . . . Impact . | . . . Slashing . | . . . Piercing . | . . . Sneak Attacks . | . . . Combat Hostiles . | . . . Follow-up Attacks . | . . . Damage Inflicted 1460 | . 478 982 Guns 933 | . 199 734 Cannons 527 | . 279 248 Explosions . | . . . Melee . | . . . Ramming . | . . . Kinetic 933 | . 199 734 Thermal 527 | . 279 248 Explosive . | . . . Electromagnetic . | . . . Impact . | . . . Slashing . | . . . Piercing . | . . . Highest Corruption . | . . . Average Corruption . | . . . Corruption Purged . | . . . Corruption Blocked . | . . . Overload Shots . | . . . Overflow Damage . | . . . Projectiles . | . . . Explosions . | . . . Melee . | . . . Knockbacks . | . . . Impact . | . . . Kinetic . | . . . Secondary . | . . . Self-Inflicted Damage . | . . . Shots . | . . . Rammed . | . . . Targets Rammed . | . . . Kicked . | . . . Crushed . | . . . Highest Temperature 262 | . 262 43 Average Temperature 66 | . 82 14 Received Heat Transfer 681 | . 195 486 Effects 3 | . 3 . Interference 3 | . 3 . Siege Activations . | . . . Martial Activations . | . . . Shielding Activations . | . . . Robots Disrupted . | . . . Combat Hostiles . | . . . Robots Corrupted . | . . . Combat Hostiles . | . . . Parts Fried . | . . . Impact Corruptions . | . . . Robots Melted . | . . . Combat Hostiles . | . . . Parts Melted 2 | . 2 . Heat Transferred 1110 | . 592 518 Parts Sabotaged . | . . . Parts Stolen . | . . . Parts Stripped . | . . . Power Chain Reactions . | . . . Alert | -11 -10 -9 ------- Run | Yrd Mat Mat Maximum Alert Level . | . . . Low Security (%) 100 | 100 100 100 Level 1 . | . . . Level 2 . | . . . Level 3 . | . . . Level 4 . | . . . Level 5 . | . . . High Security . | . . . Max Security . | . . . Peak Influence 98 | . 98 75 Initial . | . . . Average 18 | . 24 14 Influence Increases 694 | . 271 423 Destroy 0b10 Robot/C 480 | . 180 300 Destroy 0b10 Robot/NC 30 | . 5 25 Destroy Leader 110 | . 42 68 Successful Hack 13 | . 13 . Disable Machine 15 | . 15 . Destroy Structure 1 | . 1 . Lose Combat Pursuer 45 | . 15 30 Influence Decreases 694 | . 271 423 Time Decay 592 | . 261 331 Lost Part 102 | . 10 92 Squads Dispatched 3 | . 2 1 Investigation 1 | . 1 . Extermination . | . . . Reinforcement 2 | . 1 1 Assault . | . . . Garrison . | . . . Intercept . | . . . Searches Triggered . | . . . Construction Impeded . | . . . Haulers Reinforced . | . . . Active Scanning Responses . | . . . Cargo Convoy Interrupts . | . . . Stealth | -11 -10 -9 --------- Run | Yrd Mat Mat Distress Signals 3 | . . 3 Communications Jammed . | . . . Distress Signals . | . . . Times Spotted 43 | . 17 26 Peak Tracking Total 5 | . 3 5 Tactical Retreats 3 | . 1 2 Traps | -11 -10 -9 ------- Run | Yrd Mat Mat Traps Triggered . | . . . Indirectly . | . . . Trap Hack Attempts . | . . . Triggered . | . . . Disarmed 4 | . 4 . Reprogrammed . | . . . Reused . | . . . Traps Extracted . | . . . Installed . | . . . Triggered . | . . . Machines | -11 -10 -9 ---------- Run | Yrd Mat Mat Machines Disabled 1 | . 1 . Max in Single Turn 1 | . 1 . Machines Repaired . | . . . Machines Dismantled . | . . . Machines Sabotaged . | . . . Overloaded Fab Kills . | . . . Hacking | -11 -10 -9 --------- Run | Yrd Mat Mat Machines Accessed 6 | . 4 2 Terminals 5 | . 3 2 Fabricators . | . . . Repair Stations 1 | . 1 . Recycling Units . | . . . Scanalyzers . | . . . Garrison Access . | . . . Total Hacks 19 | . 16 3 Successful 14 | . 12 2 Failed 5 | . 4 1 Catastrophic . | . . . Database Lockouts . | . . . Manual . | . . . Terminals 14 | . 11 3 Fabricators . | . . . Repair Stations 5 | . 5 . Recycling Units . | . . . Scanalyzers . | . . . Garrison Access . | . . . Terminal Hacks 10 | . 8 2 Record 1 | . 1 . Prototype ID Bank 2 | . 1 1 Emergency Access Points 1 | . 1 . Alert Level 1 | . . 1 Locate Traps 1 | . 1 . Disarm Traps 1 | . 1 . Maintenance Status 1 | . 1 . Registered Components 1 | . 1 . Zone Layout 1 | . 1 . Fabricator Hacks . | . . . Repair Station Hacks 4 | . 4 . Scan Component 2 | . 2 . Repair 2 | . 2 . Recycling Unit Hacks . | . . . Scanalyzer . | . . . Garrison Access Hacks . | . . . Unauthorized Hacks . | . . . Terminals . | . . . Fabricators . | . . . Repair Stations . | . . . Recycling Units . | . . . Scanalyzers . | . . . Garrison Access . | . . . Data Cores Recovered . | . . . Used . | . . . Hacking Detections 4 | . 4 . Full Trace Events 1 | . 1 . Feedback Events . | . . . Feedback Blocked . | . . . Robot Schematics Acquired . | . . . Robots Built . | . . . Authchips . | . . . Time . | . . . Total Robot Build Rating . | . . . Part Schematics Acquired . | . . . Parts Built . | . . . Authchips . | . . . Time . | . . . Total Part Build Rating . | . . . Part Studies Acquired . | . . . Parts Repaired 2 | . 2 . Time 52 | . 52 . Parts Recycled . | . . . Recycled Matter . | . . . Retrieved Matter . | . . . Retrieved Components . | . . . Parts Scanalyzed . | . . . Part Schematics Acquired . | . . . Parts Damaged . | . . . Bothacking | -11 -10 -9 ------------ Run | Yrd Mat Mat Used RIF Installer . | . . . Robots Hacked . | . . . Non-combat . | . . . Combat . | . . . Robot Hacks Applied . | . . . Relay Couplers Released . | . . . Fabnet Peak Effective % . | . . . Robots Rewired . | . . . Allies Hacked . | . . . Hacks Repelled . | . . . Allies | -11 -10 -9 -------- Run | Yrd Mat Mat Total Allies . | . . . Largest Group . | . . . Highest-Rated Group . | . . . Highest-Rated Ally . | . . . Total Orders . | . . . Ally Attacks . | . . . Total Damage . | . . . Kills . | . . . Allies Corrupted . | . . . Allies Melted . | . . . Intel | -11 -10 -9 ------- Run | Yrd Mat Mat Active Infowar (turns) 2150 | . 814 1336 Optics 997 | . . 997 Sensors 1625 | . 814 811 Robot Analysis Total . | . . . Derelict Logs Recovered . | . . . Drone Launches . | . . . Drone Recoveries . | . . . Exploration | -11 -10 -9 ------------- Run | Yrd Mat Mat Turns Passed 2594 | 78 1180 1336 Spaces Moved 650 | 45 339 266 Core 14 | 3 . 11 Treads 546 | 42 339 165 Legs . | . . . Wheels 90 | . . 90 Hover . | . . . Flight . | . . . Fastest Speed 50 | 50 160 175 Average Speed 327 | 152 292 402 Slowest Speed 1500 | 160 480 1500 Overloaded Moves . | . . . Propulsion Burnouts . | . . . Robots Hopped . | . . . Potential Cave-ins . | . . . Cave-ins Triggered . | . . . Exploration Rate (%) 28 | 3 49 32 Regions Visited 2 Branch Regions . Pre-discovered Areas . | . . . Known Exits Taken . | . . . Unknown Exits Taken 2 | 1 1 . Scrap Searched . | . . . Spaces Dug . | . . . Terrain Destroyed . | . . . Melee . | . . . Projectile . | . . . AOE . | . . . Terrain Rammed . | . . . Walls Destroyed . | . . . Machines Disabled . | . . . Actions | -11 -10 -9 --------- Run | Yrd Mat Mat Total 931 | 54 455 422 Wait 66 | . 45 21 Move 648 | 44 338 266 Hop . | . . . Pick Up 36 | 5 13 18 Fast Attach . | . . . Attach 31 | 5 6 20 Detach 2 | . . 2 Swap 2 | . 1 1 Drop 1 | . 1 . Fire 145 | . 51 94 Melee . | . . . Ram . | . . . Kick . | . . . Crush . | . . . Escape Stasis . | . . . Rewire . | . . . Trap . | . . . Miscellaneous . | . . . Route ------- -11/Scrapyard -10/Materials (discovered 3 exits: *Mat / [*Min] / [*Sub]) -9/Materials History --------- Turn | Location | Event 9 | -11/Scrapyard | Discovered new exit (range 15) 79 | -11/Scrapyard | Entered Materials 266 | -10/Materials | Discovered new exit (range 16) 282 | -10/Materials | Discovered new exit (range 9) 306 | -10/Materials | Build established: Mutant 644 | -10/Materials | Discovered new exit (range 5) 811 | -10/Materials | Repaired Ion Engine 839 | -10/Materials | Repaired Lgt. Treads 1259 | -10/Materials | Entered another Materials area 1259 | -9/Materials | Evolved 2 slots: Utility x2 2071 | -9/Materials | Core integrity fell below 50% 2104 | -9/Materials | Lost 7 parts (2p1n2u2w) 2323 | -9/Materials | Core integrity fell below 20% 2347 | -9/Materials | Lost 5 parts (1p2n1u1w) 2595 | -9/Materials | Destroyed by Y-45 Defender with Beam Rifle Last Messages --------------- W-16 Scout sends out distress signal. Y-45 Defender destroyed. K-01 Serf cleans the Terminal. W-16 Scout destroyed. Acquired data core, dynamic key expired. K-01 Serf cleans the Terminal. Acquired 11 matter. Acquired 25 matter. Hrd. Light Armor Plating destroyed. K-01 Serf cleans the Terminal. Acquired Visual Processing Unit. K-01 Serf cleans the Terminal. R-06 Scavenger collects Beam Rifle. R-06 Scavenger collects Lgt. Armor Plating. R-06 Scavenger collects Heat Sink. R-06 Scavenger collects Lgt. Treads. Imp. Assault Rifle destroyed. Critical hit (Burn: +37). Com. Wheel destroyed. Critical hit (Burn: +37). Map ----- +----------------------------------------------------+ | ??????????????????#######%### #?????# #??????? | | ????????????????????????###?# #?????+ +??????? | | ????????????????????????????# #?????# #??????? | | ????????????????????????????# #?????# #??????? | | ????????????????????????????# #?????# +??????? | | ????????????????????????????# #?????# #??????? | | ??????????????????????????### #?????# #??????? | | ??????????????????????????#"" #?????# #??????? | | ??????????????????????????#"T #?????# #??????? | | ??????????????????????????#"" #?????# ??????? | | ???????????????????########## #?????+ ??????? | | ???????????????????# # #?????? ??????? | | ???????????????????# """ # #??????##+#??????? | | ???????????????????# """ # #????????????????? | | ???????????????????# """ # #????????????????? | | ???????????????????# + #????????????????? | | ???????????????????# """ # #????????????????? | | ???????????????????# """ # #????????????????? | | ???????????????????# """ # #????????????????? | | ???????????????????# # #????????????????? | | ???????????????????########## #????????????????? | | ???????????????????####### ## #????????????????? | | ???????????????????# T *!! ## ###########??????? | | ???????????????????# *! ## # ! #??????? | | ???????????????????# [! ## # #??????? | | ???????????????????# @ ## # """ #??????? | | ???????????????????# ## # """"" #??????? | | ???????????????????# Y / """"" #??????? | | ???????????????????# """ ## # """"" #??????? | | ???????????????????# """ ## # """ #??????? | | ???????????????????# """ r## # #??????? | | ???????????????????# ## ###########??????? | | ???????????????????# ## #????????????????? | | ???????????????????#####+### ????????????????? | | ??????????????????????? ?? #???????????????? | | ??????????????????????? ? % #???????????????? | | ??????????????????????? ? #???????????????? | | ???????????????????????##### #???????????????? | | ???????????????????????????#######???????????????? | | ?????????????????????????????????????????????????? | | ?????????????????????????????????????????????????? | | ?????????????????????????????????????????????????? | | ?????????????????????????????????????????????????? | | ?????????????????????????????????????????????????? | | ?????????????????????????????????????????????????? | | ?????????????????????????????????????????????????? | | ?????????????????????????????????????????????????? | | ?????????????????????????????????????????????????? | | ?????????????????????????????????????????????????? | | ?????????????????????????????????????????????????? | +----------------------------------------------------+ Best States ------------- Heat Dissipation 42 Energy Generation 12 Energy Capacity 265 Matter Stores 300 Matter Capacity 300 Sight Range 18 Robot Scan Range 14 Terrain Scan Density 10 Armor Coverage 150 Evasion (%) 40 Recoil Reduction 2 Item Schematics ----------------- None Robot Schematics ------------------ None Fabricated ------------ Nothing Repaired ---------- Ion Engine | 16% | -10/Materials Lgt. Treads | 22% | -10/Materials Studied --------- None Alien Tech Used ----------------- None Achievements -------------- None Challenges ------------ None Game ------ Seed NeutrinoMetafieldCharger Manual? 0 Play Time 00:23:18 Cumulative 3.0 hours Start 2026.02.03 @ 16:06:17 End 2026.02.03 @ 16:27:08 Sessions 1 Manual Loads 0 Difficulty Rogue Special Mode None Game No. 5 Rogue 5 Adventurer 0 Explorer 0 Win Type - Total 0 Types 0/0/0/0/0/0/0/0/0/0 Lore% 0 Gallery% 8 Achievement% 7 Wizard Run 0 Options --------- Layout 1 ASCII 0 Keyboard 0 Movement Mouse Keybinds 0 Fullscreen 1 Font 24/Smallcaps Map View 50x35 Zoom Use 0% Tactical HUD 0 Map Filters NONE Filters NONE Steam 1 RUN: 5879a9f1-df34-4f81-b280-5ad4df565c73